[Event "Vienna Championship-B 2022"]
[Site "Vienna"]
[Date "2022.09.21"]
[Round "5.5"]
[White "Obenaus, Paul"]
[Black "Schwabeneder, Alois"]
[Result "1-0"]
[ECO "A55"]
[WhiteElo "1825"]
[BlackElo "1911"]
[Annotator "TA"]
[PlyCount "81"]
[EventDate "2022.09.17"]
[EventType "swiss"]
[EventCountry "AUT"]
[SourceTitle "playchess.com"]
[Source "ChessBase"]
[SourceQuality "1"]
[TimeControl "5400+30"]

{[%evp 10,81,60,62,69,68,72,43,65,63,65,58,80,81,114,121,120,120,114,110,110,106,118,110,143,105,108,105,144,97,98,93,195,185,219,226,233,254,385,380,618,617,657,650,979,966,987,950,834,456,804,811,751,544,513,562,491,327,452,386,553,322,313,302,325,331,456,442,451,442,29982,29983,29983,29984]} 1. d4 {[%emt 0:00:03]} Nf6 {[%emt 0:00:28]} 2. c4 {[%emt 0:00:06]} d6 {[%emt 0:01:33]} 3. Nc3 {[%emt 0:00:06]} Nbd7 {[%emt 0:00:15]} 4. e4 {[%emt 0:00:29]} e5 {[%emt 0:00:27]} 5. Nf3 {[%emt 0:00:58]} Be7 {[%emt 0:00:57]} 6. Be2 {[%emt 0:01:09]} a6 {[%emt 0:01:18] A55: Old Indian Defence with Nf3 and e4.} 7. O-O {[%emt 0:01:04]} O-O {[%emt 0:00:26]} 8. Re1 {[%emt 0:00:20] [#]} exd4 $146 {[%emt 0:10:16] White is slightly better.} ({Predecessor:} 8... c6 9. a3 Re8 10. Bf1 a5 11. Rb1 exd4 12. Nxd4 Bf8 13. b4 axb4 14. axb4 h6 15. h3 Nb6 16. Bf4 Nfd7 17. Qb3 Ne5 18. Rbd1 {1-0 (45) Evdokimov,A (2555)-Roy Chowdhury,S (2405) Dubai 2012}) 9. Nxd4 {[%emt 0:00:23]} Nc5 {[%emt 0:00:08]} 10. Bf1 {[%emt 0:02:49]} Bg4 {[%emt 0:03:48]} 11. f3 {[%emt 0:01:25]} Bd7 {[%emt 0:00:02]} 12. b4 {[%emt 0:01:57]} Ne6 {[%emt 0:06:24] [#]} 13. Nf5 $1 {[%emt 0:01:02] White is more active.} Re8 {[%emt 0:01:21]} 14. Nxe7+ {[%emt 0:02:54]} Rxe7 {[%emt 0:00:20]} 15. Be3 {[%emt 0:06:13]} Re8 {[%emt 0:00:50]} 16. Qd2 {[%emt 0:02:01]} Bc6 {[%emt 0:03:09]} 17. Rad1 {[%emt 0:10:01]} b6 {[%emt 0:02:01]} 18. Qc2 {[%emt 0:04:46]} a5 {[%emt 0:03:39]} 19. e5 {[%emt 0:03:57]} (19. b5 $142 Bd7 20. h3) 19... axb4 $16 {[%emt 0:03:06]} 20. Nb5 {[%emt 0:07:09]} Nh5 {[%emt 0:03:17]} (20... Nd7 $16) 21. exd6 $18 {[%emt 0:10:13]} cxd6 {[%emt 0:06:19]} 22. Nxd6 {[%emt 0:03:42] [#] And now Qf5 would win.} Ba4 {[%emt 0:03:12]} 23. Qf5 {[%emt 0:01:49]} (23. Nxe8 Bxc2 24. Rxd8 Rxd8 $11) 23... Nf6 {[%emt 0:03:58]} (23... Qe7 {was called for.} 24. Qxh5 (24. Nxe8 Bxd1 25. Rxd1 g6 $18) 24... Bxd1 25. Rxd1 (25. Nxe8 Bc2 $18) 25... Red8) 24. Nxe8 {[%emt 0:02:45]} Bxd1 {[%emt 0:00:25]} (24... Qxe8 25. Rb1 (25. Bxb6 Bxd1 26. Rxd1 Rxa2 $16) 25... Nd7) 25. Nxf6+ {[%emt 0:00:21]} gxf6 {[%emt 0:01:24]} 26. Bd3 {[%emt 0:00:24]} Ba4 {[%emt 0:00:45]} 27. Qxh7+ {[%emt 0:05:40]} Kf8 {[%emt 0:00:43]} 28. Bf5 {[%emt 0:04:10] Threatening mate with Bh6+.} Bd7 {[%emt 0:01:16]} 29. Bf4 {[%emt 0:01:37] White wants to mate with Bd6+.} Ke7 {[%emt 0:02:51] Inhibits Bd6+.} (29... Bc8 $142 30. Be3 Ra3) 30. Bd2 {[%emt 0:03:18] This bishop pair is nice.} Ra4 {[%emt 0:00:29]} 31. Bc2 {[%emt 0:00:27]} Bc6 {[%emt 0:03:17]} 32. Rd1 {[%emt 0:03:40]} ({Not} 32. Bxa4 Qxd2 33. Qh4 (33. Rxe6+ $2 Kxe6 34. Qh3+ Ke7 $19) 33... Bxa4 $11) 32... Qd6 {[%emt 0:05:51]} 33. Bb3 {[%emt 0:03:07] Threatens to win with Be1.} Ra5 {[%emt 0:02:16]} 34. Be3 {[%emt 0:01:18]} Qc7 {[%emt 0:00:13]} (34... Qe5 $142 35. Bxb6 Qf5) 35. Qd3 {[%emt 0:00:58][%cal Oc4c5] aiming for c5!} Rh5 {[%emt 0:04:13][%cal Oc6f3]} 36. h3 {[%emt 0:02:39]} Bxf3 {[%emt 0:04:54]} 37. gxf3 {[%emt 0:02:49] Dancing on a razor blade.} Qg3+ {[%emt 0:01:29]} 38. Kf1 {[%emt 0:00:08]} Qxh3+ {[%emt 0:00:46]} 39. Ke1 {[%emt 0:00:22] Black must now prevent Qd6+.} (39. Ke2 {is a self mate.} Qg2+ 40. Bf2 Nf4+ 41. Ke3 Nxd3 42. Rxd3 Re5+ 43. Kd2 Qxf2+ 44. Kc1 Rh5 45. Rd2 Qe3 46. Bc2 Rh1+ 47. Bd1 Re1 48. Kc2 Qc3+ 49. Kb1 Qxd2 50. a4 Rxd1#) 39... Qg2 {[%emt 0:01:41]} (39... Qg3+ $18 40. Kd2 (40. Bf2 Re5+ 41. Kd2 Qxf2+ 42. Kc1 Qe3+ 43. Rd2 Qxd3 $17) 40... Nc5) 40. Qd6+ {[%emt 0:00:18]} Ke8 {[%emt 0:00:52]} 41. Ba4+ {[%emt 0:00:09] Weighted Error Value: White=0.57/Black=0.69} 1-0

[Event "Vienna Championship-B 2022"]
[Site "Vienna"]
[Date "2022.09.21"]
[Round "5.6"]
[White "Pantelic, Slobodan"]
[Black "Kummer, Helmut"]
[Result "0-1"]
[ECO "D02"]
[WhiteElo "1596"]
[BlackElo "2203"]
[Annotator "TA"]
[PlyCount "78"]
[EventDate "2022.09.17"]
[EventType "swiss"]
[EventCountry "AUT"]
[SourceTitle "playchess.com"]
[Source "ChessBase"]
[SourceQuality "1"]
[TimeControl "5400+30"]

{[%evp 12,78,11,-2,17,13,27,10,11,1,44,0,0,0,0,0,6,-4,27,-16,-13,-9,-6,-17,-13,-18,-12,-127,-45,-45,-18,-25,-25,-25,-31,-24,-23,-58,-60,-156,-163,-216,-204,-212,-201,-202,-121,-135,-131,-131,-113,-124,-125,-654,-636,-696,-674,-29976,-29976,-29977,-29978,-29977,-29946,-29984,-29985,-29985,-29982,-29986,-29987]} 1. Nf3 {[%emt 0:10:53]} d5 {[%emt 0:00:35]} 2. d4 {[%emt 0:00:02]} c6 {[%emt 0:00:35]} 3. Bf4 {[%emt 0:00:03]} Bf5 {[%emt 0:00:32]} 4. e3 {[%emt 0:00:04]} e6 {[%emt 0:00:55]} 5. h3 {[%emt 0:00:05]} Nf6 {[%emt 0:00:59]} 6. Be2 {[%emt 0:00:04]} h6 {[%emt 0:02:25]} 7. Nbd2 {[%emt 0:00:17]} Nbd7 {[%emt 0:01:54] D02: 1 d4 d5 2 Nf3 sidelines, including 2...Nf6 3 g3 and 2...Nf6 3 Bf4.} 8. O-O {[%emt 0:00:08]} Be7 {[%emt 0:02:31]} 9. a4 {[%emt 0:00:04]} O-O {[%emt 0:00:18] [#] The position is equal.} 10. c4 $146 {[%emt 0:00:35]} ({Predecessor:} 10. a5 Bh7 11. Nb3 Ne4 12. c4 g5 13. Bh2 f5 14. a6 b6 15. cxd5 cxd5 16. Bb5 {½-½ (46) Wagner,F (2174)-Walter,F (2092) Nuremberg 2012}) 10... Re8 {[%emt 0:03:45]} 11. Ne5 {[%emt 0:00:07]} Nxe5 {[%emt 0:00:51]} 12. Bxe5 {[%emt 0:00:05]} Nd7 {[%emt 0:03:51]} 13. Bh2 {[%emt 0:00:31]} Bf6 {[%emt 0:02:40]} 14. Nf3 {[%emt 0:00:11]} Nb6 {[%emt 0:08:12]} 15. Qb3 {[%emt 0:00:22]} dxc4 {[%emt 0:02:52]} 16. Bxc4 {[%emt 0:03:52]} Nxc4 {[%emt 0:00:13]} 17. Qxc4 {[%emt 0:00:24]} Qd5 {[%emt 0:02:16]} 18. Qxd5 {[%emt 0:00:03]} exd5 {[%emt 0:04:06]} 19. b4 {[%emt 0:00:12] [#]} (19. Ra3 $11 {remains equal.}) 19... a5 {[%emt 0:00:16]} ({Black should play} 19... Be7 $1 $17 20. Rfc1 Bxb4) 20. Bd6 $15 {[%emt 0:00:18]} Ra6 {[%emt 0:14:58] With the idea ...axb4.} 21. bxa5 {[%emt 0:00:13]} Rxa5 {[%emt 0:00:07]} 22. Bc7 {[%emt 0:00:09]} Ra6 $36 {[%emt 0:01:21][%mdl 2048] Black has some pressure.} 23. a5 {[%emt 0:00:04]} c5 {[%emt 0:00:45]} 24. Bb6 {[%emt 0:00:02]} c4 {[%emt 0:45:33]} 25. Rfc1 {[%emt 0:00:11]} ({White should try} 25. Ne5 $15) 25... Bd8 $17 {[%emt 0:00:00] Black is more active.} 26. Ne5 {[%emt 0:00:11]} (26. g4 $142 Bh7 27. Bxd8 Rxd8 28. Nd2) 26... Bxb6 $19 {[%emt 0:00:00]} 27. axb6 {[%emt 0:00:04]} Rxb6 {[%emt 0:00:00]} 28. Ra5 {[%emt 0:00:03]} Be6 {[%emt 0:00:00]} (28... Rc8 $19 {...c3 is the strong threat.} 29. g4 Rb1 30. Rxb1 Bxb1) 29. e4 $17 {[%emt 0:00:14]} Rd8 {[%emt 0:00:00]} ({Stronger than} 29... dxe4 30. d5 Bxh3 31. Nxc4 $17) 30. exd5 {[%emt 0:00:03]} Rxd5 {[%emt 0:00:00]} ({Much weaker is} 30... Bxd5 $6 31. Nxc4 Rc6 32. Rc5 $11) 31. Nxc4 {[%emt 0:00:05] [#]} Rc6 $1 {[%emt 0:00:00] Strongly threatening ...Rxa5.} 32. Rxd5 {[%emt 0:00:06][%mdl 8192] White does not recover from this.} (32. Raa1 $17) 32... Bxd5 $19 {[%emt 0:00:00]} 33. Rc3 {[%emt 0:00:46]} Rxc4 {[%emt 0:00:00]} 34. Rxc4 {[%emt 0:00:33]} Bxc4 {[%emt 0:05:00] KB-KP. Black mates.} 35. f3 {[%emt 1:26:56]} Kf8 {[%emt 0:00:00]} 36. Kf2 {[%emt 0:00:00]} Ke7 {[%emt 0:00:00]} 37. h4 {[%emt 0:00:00]} b5 {[%emt 0:00:00][%cal Bb7b5,Bb5b4][%mdl 32]} 38. Ke3 {[%emt 0:00:00]} b4 {[%emt 0:00:00]} 39. Kd2 {[%emt 0:02:00]} Kd6 {Weighted Error Value: White=0.56/Black=0.11 (very precise)} 0-1

[Event "Vienna Championship-B 2022"]
[Site "Vienna"]
[Date "2022.09.21"]
[Round "5.7"]
[White "Hirsch, Adolf Jun."]
[Black "Bytyqi, Kujtim"]
[Result "0-1"]
[ECO "E68"]
[WhiteElo "1731"]
[BlackElo "1862"]
[Annotator "NA RC COMBH"]
[PlyCount "44"]
[EventDate "2022.09.17"]
[EventType "swiss"]
[EventCountry "AUT"]
[SourceTitle "playchess.com"]
[Source "ChessBase"]
[SourceQuality "1"]
[TimeControl "5400+30"]

1. Nf3 {[%emt 0:00:03]} Nf6 {[%emt 0:00:08]} 2. g3 {[%emt 0:00:04]} g6 {[%emt 0:00:04]} 3. Bg2 {[%emt 0:00:04]} Bg7 {[%emt 0:00:04]} 4. d4 {[%emt 0:00:05]} O-O {[%emt 0:00:11]} 5. c4 {[%emt 0:00:12]} d6 {[%emt 0:01:26]} 6. O-O {[%emt 0:00:13]} Nbd7 {[%emt 0:00:10]} 7. Nc3 {[%emt 0:00:12]} e5 {[%emt 0:00:20]} 8. b3 {[%emt 0:04:02]} c6 {[%emt 0:07:02]} 9. e4 {[%emt 0:09:15]} exd4 {[%emt 0:11:55]} 10. Nxd4 {[%emt 0:00:06]} Nc5 {[%emt 0:02:50]} 11. Rb1 {[%emt 0:04:35]} Re8 {[%emt 0:01:56]} 12. f3 {[%emt 0:01:06]} d5 {[%emt 0:19:34]} 13. cxd5 {[%emt 0:15:07]} cxd5 {[%emt 0:02:00]} 14. Ba3 {[%emt 0:11:21]} Qb6 {[%emt 0:10:13]} 15. Bxc5 {[%emt 0:02:16]} Qxc5 {[%emt 0:00:13]} 16. Na4 {[%emt 0:01:24]} Qe7 {[%emt 0:02:29]} 17. Re1 {[%emt 0:08:31]} dxe4 {[%emt 0:00:29]} 18. fxe4 {[%emt 0:00:28]} Rd8 {[%emt 0:02:00]} 19. Nc3 {[%emt 0:11:04]} Qc5 {[%emt 0:07:52]} 20. Nce2 {[%emt 0:00:11]} Ng4 {[%emt 0:00:31]} 21. h3 {[%emt 0:05:40]} Bxd4+ {[%emt 0:00:22]} 22. Nxd4 {[%emt 0:00:22]} Rxd4 {[%emt 0:00:06]} 0-1

[Event "Vienna Championship-B 2022"]
[Site "Vienna"]
[Date "2022.09.21"]
[Round "5.8"]
[White "Pavlov, Alexander"]
[Black "Stinner, David"]
[Result "*"]
[ECO "B18"]
[WhiteElo "1751"]
[BlackElo "1823"]
[Annotator "NA RC COMBH"]
[PlyCount "106"]
[EventDate "2022.09.17"]
[EventType "swiss"]
[EventCountry "AUT"]
[SourceTitle "playchess.com"]
[Source "ChessBase"]
[SourceQuality "1"]
[TimeControl "5400+30"]

1. e4 {[%emt 0:00:01]} c6 {[%emt 0:00:13]} 2. d4 {[%emt 0:00:44]} d5 {[%emt 0:00:09]} 3. Nc3 {[%emt 0:00:56]} dxe4 {[%emt 0:00:29]} 4. Nxe4 {[%emt 0:00:07]} Bf5 {[%emt 0:00:55]} 5. Ng3 {[%emt 0:00:31]} Bg6 {[%emt 0:00:11]} 6. Nf3 {[%emt 0:00:20]} Nd7 {[%emt 0:00:17]} 7. Bf4 {[%emt 0:01:46]} e6 {[%emt 0:01:43]} 8. Bd3 {[%emt 0:00:41]} Ngf6 {[%emt 0:01:02]} 9. O-O {[%emt 0:03:06]} Be7 {[%emt 0:02:22]} 10. Re1 {[%emt 0:00:58]} O-O {[%emt 0:01:13]} 11. Bxg6 {[%emt 0:00:25]} hxg6 {[%emt 0:00:10]} 12. Qd3 {[%emt 0:02:30]} c5 {[%emt 0:02:24]} 13. c3 {[%emt 0:09:32]} cxd4 {[%emt 0:02:06]} 14. cxd4 {[%emt 0:00:48]} Nd5 {[%emt 0:01:47]} 15. Bd2 {[%emt 0:01:19]} Rc8 {[%emt 0:04:20]} 16. Ne4 {[%emt 0:03:45]} N7f6 {[%emt 0:02:49]} 17. Neg5 {[%emt 0:02:24]} Nh5 {[%emt 0:04:27]} 18. Re4 {[%emt 0:02:52]} Qd6 {[%emt 0:34:18]} 19. Rh4 {[%emt 0:23:45]} f5 {[%emt 0:10:43]} 20. g3 {[%emt 0:09:51]} Bxg5 {[%emt 0:03:42]} 21. Bxg5 {[%emt 0:01:48]} Nb4 {[%emt 0:02:16]} 22. Qb3 {[%emt 0:03:46]} Qd5 {[%emt 0:04:42]} 23. Ne5 {[%emt 0:04:21]} Qxb3 {[%emt 0:06:19]} 24. axb3 {[%emt 0:00:14]} Kh7 {[%emt 0:00:18]} 25. f3 {[%emt 0:02:38]} Nc6 {[%emt 0:01:41]} 26. g4 {[%emt 0:07:37]} Nxe5 {[%emt 0:01:07]} 27. dxe5 {[%emt 0:00:05]} fxg4 {[%emt 0:00:16]} 28. fxg4 {[%emt 0:00:07]} Rc2 {[%emt 0:00:36]} 29. Rf1 {[%emt 0:02:02]} Rxf1+ {[%emt 0:00:23]} 30. Kxf1 {[%emt 0:00:05]} Rxb2 {[%emt 0:00:14]} 31. gxh5 {[%emt 0:00:06]} gxh5 {[%emt 0:00:07]} 32. Be3 {[%emt 0:17:20]} Rxb3 {[%emt 0:00:29]} 33. Rxh5+ {[%emt 0:00:00]} Kg6 {[%emt 0:00:24]} 34. Rg5+ {[%emt 0:00:00]} Kf7 {[%emt 0:00:46]} 35. Bxa7 {[%emt 0:00:00]} b5 {[%emt 0:00:34]} 36. Rg3 {[%emt 0:00:00]} Rb2 {[%emt 0:00:13]} 37. h3 {[%emt 0:00:00]} b4 {[%emt 0:00:22]} 38. Rf3+ {[%emt 0:00:00]} Kg6 {[%emt 0:00:17]} 39. Rf2 {[%emt 0:00:00]} Rb3 {[%emt 0:00:11]} 40. Kg2 {[%emt 0:00:00]} Ra3 {[%emt 0:00:35]} 41. Bc5 {[%emt 0:00:00]} Ra5 {[%emt 0:00:07]} 42. Bd6 {[%emt 0:00:00]} b3 {[%emt 0:00:12]} 43. Rf1 {[%emt 0:00:00]} Ra2+ {[%emt 0:02:17]} 44. Kg3 {[%emt 0:00:00]} Rc2 {[%emt 0:00:48]} 45. Rb1 {[%emt 0:00:00]} Rc3+ {[%emt 0:00:10]} 46. Kg4 {[%emt 0:00:00]} Rc4+ {[%emt 0:00:07]} 47. Kf3 {[%emt 0:00:00]} Rc3+ {[%emt 0:00:06]} 48. Kg2 {[%emt 0:00:00]} Rc2+ {[%emt 0:00:08]} 49. Kg1 {[%emt 0:00:00]} Rc3 {[%emt 0:00:53]} 50. h4 {[%emt 0:00:00]} Kf5 {[%emt 0:00:15]} 51. Bf8 {[%emt 0:00:00]} g6 {[%emt 0:13:47]} 52. Bg7 {[%emt 0:10:00]} Ke4 53. Kf1 {[%emt 0:00:30]} Kf4 {[%emt 0:01:00]} *

[Event "Vienna Championship-B 2022"]
[Site "Vienna"]
[Date "2022.09.21"]
[Round "5.10"]
[White "Wickramasinghe, Nathaniel"]
[Black "Paseka, Christian"]
[Result "1-0"]
[ECO "B83"]
[WhiteElo "1760"]
[BlackElo "1568"]
[Annotator "NA COMBH"]
[PlyCount "59"]
[EventDate "2022.09.17"]
[EventType "swiss"]
[EventCountry "AUT"]
[SourceTitle "playchess.com"]
[Source "ChessBase"]
[SourceQuality "1"]
[TimeControl "5400+30"]

1. e4 c5 2. Nf3 d6 3. d4 cxd4 4. Nxd4 Nf6 5. Nc3 a6 6. Be3 e6 7. Be2 Be7 8. O-O Nc6 9. f4 Qc7 10. Qd2 Nxd4 11. Bxd4 e5 12. Be3 O-O 13. f5 b5 14. a3 Bb7 15. Bf3 Rfd8 16. Bg5 h6 17. Bxf6 Bxf6 18. Nd5 Bxd5 19. Qxd5 Qxc2 20. Bh5 Qc7 21. Rac1 Qd7 22. Rc3 Rac8 23. Rfc1 Rxc3 24. Rxc3 Rc8 25. Qxf7+ Qxf7 26. Bxf7+ Kxf7 27. Rxc8 a5 28. Ra8 b4 29. Rxa5 bxa3 30. Rxa3 1-0

[Event "Vienna Championship-B 2022"]
[Site "Vienna"]
[Date "2022.09.21"]
[Round "5.12"]
[White "Kern, Julian"]
[Black "Ginther, Tobias"]
[Result "0-1"]
[ECO "D35"]
[WhiteElo "1694"]
[BlackElo "1766"]
[Annotator "NA RC COMBH"]
[PlyCount "84"]
[EventDate "2022.09.17"]
[EventType "swiss"]
[EventCountry "AUT"]
[SourceTitle "playchess.com"]
[Source "ChessBase"]
[SourceQuality "1"]
[TimeControl "5400+30"]

1. d4 {[%emt 0:00:02]} d5 {[%emt 0:00:05]} 2. c4 {[%emt 0:00:05]} e6 {[%emt 0:00:03]} 3. Nc3 {[%emt 0:00:08]} Nf6 {[%emt 0:00:06]} 4. cxd5 {[%emt 0:00:09]} exd5 {[%emt 0:00:11]} 5. Bg5 {[%emt 0:00:12]} c6 {[%emt 0:00:46]} 6. e3 {[%emt 0:00:29]} Bf5 {[%emt 0:00:58]} 7. Qf3 {[%emt 0:00:31]} Bg6 {[%emt 0:00:14]} 8. Bxf6 {[%emt 0:00:30]} Qxf6 {[%emt 0:00:17]} 9. Qxf6 {[%emt 0:00:10]} gxf6 {[%emt 0:00:03]} 10. Nf3 {[%emt 0:00:49]} Bd6 {[%emt 0:01:45]} 11. Rd1 {[%emt 0:04:23]} Nd7 {[%emt 0:03:58]} 12. Bd3 {[%emt 0:01:03]} O-O-O {[%emt 0:01:26]} 13. Nh4 {[%emt 0:02:06]} Rhe8 {[%emt 0:08:09]} 14. Nf5 {[%emt 0:02:29]} Bc7 {[%emt 0:01:50]} 15. O-O {[%emt 0:02:22]} Nb6 {[%emt 0:08:55]} 16. b3 {[%emt 0:09:50]} Kb8 {[%emt 0:00:16]} 17. Rc1 {[%emt 0:04:16]} Nc8 {[%emt 0:04:35]} 18. Rfd1 {[%emt 0:02:13]} Nd6 {[%emt 0:00:44]} 19. Ng3 {[%emt 0:05:27]} h5 {[%emt 0:01:34]} 20. Nge2 {[%emt 0:01:09]} h4 {[%emt 0:01:33]} 21. Nf4 {[%emt 0:02:34]} Bxd3 {[%emt 0:04:11]} 22. Nxd3 {[%emt 0:00:33]} Rg8 {[%emt 0:03:25]} 23. b4 {[%emt 0:03:20]} Rg5 {[%emt 0:56:56]} 24. a4 {[%emt 0:02:19]} Rdg8 {[%emt 0:00:00]} 25. Ne1 {[%emt 0:01:04]} Nc4 {[%emt 0:00:00]} 26. Rd3 {[%emt 0:09:04]} f5 {[%emt 0:00:00]} 27. b5 {[%emt 0:05:12]} Ba5 {[%emt 0:00:00]} 28. f4 {[%emt 0:03:49]} R5g6 {[%emt 0:00:00]} 29. Rc2 {[%emt 0:01:35]} Re8 {[%emt 0:00:00]} 30. Re2 {[%emt 0:02:42]} Rge6 {[%emt 0:00:00]} 31. Kf2 {[%emt 0:05:19]} Nd6 {[%emt 0:00:00]} 32. Kf3 {[%emt 0:02:14]} Bxc3 {[%emt 0:00:00]} 33. Rxc3 {[%emt 0:00:12]} cxb5 {[%emt 0:00:00]} 34. axb5 {[%emt 0:01:39]} Nxb5 {[%emt 0:00:00]} 35. Rcc2 {[%emt 0:01:41]} Re4 {[%emt 0:00:00]} 36. Nd3 {[%emt 0:02:14]} Rxe3+ {[%emt 0:00:00]} 37. Rxe3 {[%emt 0:06:08]} Nxd4+ {[%emt 0:00:00]} 38. Kf2 {[%emt 0:00:10]} Rxe3 {[%emt 0:00:00]} 39. Rd2 {[%emt 0:00:38]} Re4 {[%emt 0:00:00]} 40. Nc5 {[%emt 0:02:42]} Rxf4+ {[%emt 0:00:00]} 41. Ke3 {[%emt 0:00:11]} Ne6 {[%emt 0:00:00]} 42. Rxd5 {[%emt 0:01:03]} Rc4 {[%emt 0:00:00]} 0-1

[Event "Vienna Championship-B 2022"]
[Site "Vienna"]
[Date "2022.09.21"]
[Round "5.13"]
[White "Krejcar, Walter"]
[Black "Stadlinger, Lukas"]
[Result "1/2-1/2"]
[ECO "E61"]
[WhiteElo "1770"]
[BlackElo "1729"]
[Annotator "NA RC COMBH"]
[PlyCount "96"]
[EventDate "2022.09.17"]
[EventType "swiss"]
[EventCountry "AUT"]
[SourceTitle "playchess.com"]
[Source "ChessBase"]
[SourceQuality "1"]
[TimeControl "5400+30"]

1. d4 {[%emt 0:09:19]} Nf6 {[%emt 0:00:52]} 2. Bf4 {[%emt 0:00:07]} g6 {[%emt 0:00:08]} 3. e3 {[%emt 0:00:41]} Bg7 {[%emt 0:00:44]} 4. c4 {[%emt 0:00:37]} d6 {[%emt 0:02:53]} 5. Nc3 {[%emt 0:00:25]} O-O {[%emt 0:00:45]} 6. h3 {[%emt 0:00:59]} Nbd7 {[%emt 0:03:31]} 7. Nf3 {[%emt 0:00:35]} Nh5 {[%emt 0:03:48]} 8. Bg5 {[%emt 0:00:27]} f5 {[%emt 0:03:08]} 9. Be2 {[%emt 0:02:03]} Nhf6 {[%emt 0:01:55]} 10. Qc2 {[%emt 0:01:54]} e5 {[%emt 0:03:14]} 11. O-O-O {[%emt 0:00:40]} Qe8 {[%emt 0:01:25]} 12. d5 {[%emt 0:01:41]} Nc5 {[%emt 0:00:57]} 13. Bxf6 {[%emt 0:01:24]} Bxf6 {[%emt 0:03:32]} 14. h4 {[%emt 0:00:44]} Ne4 {[%emt 0:07:16]} 15. Bd3 {[%emt 0:03:21]} Nxc3 {[%emt 0:00:46]} 16. bxc3 {[%emt 0:00:36]} e4 {[%emt 0:00:16]} 17. Nd4 {[%emt 0:01:16]} exd3 {[%emt 0:02:01]} 18. Rxd3 {[%emt 0:00:37]} Bxd4 {[%emt 0:05:40]} 19. Rxd4 {[%emt 0:00:13]} Bd7 {[%emt 0:01:26]} 20. h5 {[%emt 0:01:18]} g5 {[%emt 0:04:15]} 21. Qd2 {[%emt 0:00:48]} Rf6 {[%emt 0:10:42]} 22. f3 {[%emt 0:03:54]} Qf7 {[%emt 0:04:58]} 23. e4 {[%emt 0:02:20]} h6 {[%emt 0:00:33]} 24. f4 {[%emt 0:00:31]} gxf4 {[%emt 0:05:29]} 25. Qxf4 {[%emt 0:01:12]} fxe4 {[%emt 0:00:17]} 26. Qe3 {[%emt 0:03:22]} Rf8 {[%emt 0:02:24]} 27. Rxe4 {[%emt 0:00:25]} Rf1+ {[%emt 0:03:39]} 28. Rxf1 {[%emt 0:00:49]} Qxf1+ {[%emt 0:00:04]} 29. Kb2 {[%emt 0:01:46]} Qf2+ {[%emt 0:05:27]} 30. Ka3 {[%emt 0:00:21]} Qxe3 {[%emt 0:01:20]} 31. Rxe3 {[%emt 0:00:06]} Rf7 {[%emt 0:01:18]} 32. Kb4 {[%emt 0:00:30]} c5+ {[%emt 0:01:24]} 33. Kb3 {[%emt 0:03:15]} Kf8 {[%emt 0:00:38]} 34. Rg3 {[%emt 0:00:21]} Rf6 {[%emt 0:00:20]} 35. a4 {[%emt 0:00:43]} Kf7 {[%emt 0:01:24]} 36. a5 {[%emt 0:00:52]} Ke7 {[%emt 0:01:43]} 37. Rg7+ {[%emt 0:00:31]} Kd8 {[%emt 0:00:29]} 38. g4 {[%emt 0:01:32]} Kc7 {[%emt 0:01:01]} 39. Kc2 {[%emt 0:00:56]} Rf4 {[%emt 0:01:55]} 40. g5 {[%emt 0:01:20]} hxg5 {[%emt 0:00:19]} 41. h6 {[%emt 0:00:39]} Rxc4 {[%emt 0:02:19]} 42. h7 {[%emt 0:01:53]} Rh4 {[%emt 0:00:07]} 43. Kd3 {[%emt 0:00:13]} b5 {[%emt 0:01:14]} 44. axb6+ {[%emt 0:00:48]} axb6 {[%emt 0:00:07]} 45. c4 {[%emt 0:00:20]} g4 {[%emt 0:04:28]} 46. Ke3 {[%emt 0:00:12]} g3 {[%emt 0:00:18]} 47. Kf3 {[%emt 0:00:34]} Rh3 {[%emt 0:00:46]} 48. Kg2 {[%emt 0:02:19]} Rh2+ {[%emt 0:00:57]} 1/2-1/2